[Event "Titled Tuesday Blitz April 18 Early 2023"]
[White "guillan"]
[Black "Ciorgovean, Iustin"]
[BlackFideId "1242911"]
[WhiteElo "2059"]
[BlackElo "2186"]
[Result "1-0"]
[Round "10"]
[TimeControl "180+2"]
[Date "2023.04.18"]
[WhiteClock "0:00:05"]
[BlackClock "0:00:40"]

1. d4 {[%clk 0:03:00]}  Nf6 {[%clk 0:02:59]} 2. c4 {[%clk 0:03:00]}  c6 {[%clk 0:02:59]} 3. Nf3 {[%clk 0:02:59]}  d5 {[%clk 0:03:00]} 4. cxd5 {[%clk 0:02:59]}  cxd5 {[%clk 0:03:00]} 5. Nc3 {[%clk 0:02:59]}  Nc6 {[%clk 0:03:01]} 6. Bg5 {[%clk 0:02:57]}  Ne4 {[%clk 0:02:55]} 7. Bd2 {[%clk 0:02:56]}  Nxd2 {[%clk 0:02:49]} 8. Qxd2 {[%clk 0:02:56]}  e6 {[%clk 0:02:43]} 9. e3 {[%clk 0:02:55]}  Bd7 {[%clk 0:02:38]} 10. Bd3 {[%clk 0:02:55]}  g6 {[%clk 0:02:37]} 11. O-O {[%clk 0:02:55]}  Bg7 {[%clk 0:02:37]} 12. Rfc1 {[%clk 0:02:55]}  O-O {[%clk 0:02:38]} 13. Rab1 {[%clk 0:02:55]}  Qe7 {[%clk 0:02:37]} 14. a3 {[%clk 0:02:48]}  Rfc8 {[%clk 0:02:27]} 15. b4 {[%clk 0:02:38]}  Be8 {[%clk 0:02:18]} 16. h3 {[%clk 0:02:32]}  Qd8 {[%clk 0:02:12]} 17. Bb5 {[%clk 0:01:55]}  a6 {[%clk 0:02:04]} 18. Bd3 {[%clk 0:01:41]}  e5 {[%clk 0:01:54]} 19. dxe5 {[%clk 0:01:37]}  Nxe5 {[%clk 0:01:55]} 20. Nxe5 {[%clk 0:01:35]}  Bxe5 {[%clk 0:01:56]} 21. Ne2 {[%clk 0:01:29]}  Qf6 {[%clk 0:01:50]} 22. Bc2 {[%clk 0:00:49]}  Bb5 {[%clk 0:01:48]} 23. Nd4 {[%clk 0:00:34]}  Bc4 {[%clk 0:01:42]} 24. Nf3 {[%clk 0:00:26]}  Bc7 {[%clk 0:01:36]} 25. Bd3 {[%clk 0:00:25]}  b5 {[%clk 0:01:34]} 26. Bxc4 {[%clk 0:00:24]}  dxc4 {[%clk 0:01:34]} 27. Qd4 {[%clk 0:00:23]}  Qe7 {[%clk 0:01:24]} 28. Rd1 {[%clk 0:00:23]}  Rd8 {[%clk 0:01:24]} 29. Qc3 {[%clk 0:00:22]}  Rxd1+ {[%clk 0:01:20]} 30. Rxd1 {[%clk 0:00:22]}  Rd8 {[%clk 0:01:20]} 31. Qc2 {[%clk 0:00:21]}  Bb6 {[%clk 0:01:18]} 32. Rxd8+ {[%clk 0:00:19]}  Qxd8 {[%clk 0:01:18]} 33. Kf1 {[%clk 0:00:19]}  Qd5 {[%clk 0:01:14]} 34. Ke2 {[%clk 0:00:18]}  f5 {[%clk 0:01:13]} 35. Nd2 {[%clk 0:00:18]}  Qxg2 {[%clk 0:01:12]} 36. Nxc4 {[%clk 0:00:17]}  bxc4 {[%clk 0:01:06]} 37. Qxc4+ {[%clk 0:00:17]}  Kg7 {[%clk 0:01:06]} 38. Qxa6 {[%clk 0:00:17]}  Qc6 {[%clk 0:01:04]} 39. b5 {[%clk 0:00:14]}  Qc2+ {[%clk 0:01:02]} 40. Kf3 {[%clk 0:00:14]}  Qe4+ {[%clk 0:01:00]} 41. Ke2 {[%clk 0:00:14]}  Qe6 {[%clk 0:01:00]} 42. a4 {[%clk 0:00:12]}  Qc4+ {[%clk 0:00:59]} 43. Kf3 {[%clk 0:00:11]}  Qd5+ {[%clk 0:00:55]} 44. Ke2 {[%clk 0:00:11]}  f4 {[%clk 0:00:44]} 45. Qxb6 {[%clk 0:00:07]}  f3+ {[%clk 0:00:44]} 46. Ke1 {[%clk 0:00:06]}  Qa2 {[%clk 0:00:38]} 47. Qd4+ {[%clk 0:00:06]}  Kh6 {[%clk 0:00:39]} 48. Qf4+ {[%clk 0:00:06]}  Kg7 {[%clk 0:00:39]} 49. Qxf3 {[%clk 0:00:05]}  Qb1+ {[%clk 0:00:40]} 50. Qd1 {[%clk 0:00:05]}  Qb4+ {[%clk 0:00:39]} 51. Ke2 {[%clk 0:00:05]}  Qc4+ {[%clk 0:00:39]} 52. Qd3 {[%clk 0:00:04]}  Qa2+ {[%clk 0:00:39]} 53. Kf3 {[%clk 0:00:05]}  Qxa4 {[%clk 0:00:40]} 54. Qd4+ {[%clk 0:00:05]}  Qxd4 {[%clk 0:00:40]} 55. exd4 {[%clk 0:00:05]} 1-0


[Site "https://www.chess.com"]

[Event "Titled Tuesday Blitz April 18 Early 2023"]
[White "Kiseljova, Marya"]
[Black "Liu, Casper"]
[WhiteFideId "4155009"]
[BlackFideId "1454153"]
[WhiteElo "1851"]
[BlackElo "2221"]
[Result "1-0"]
[Round "10"]
[TimeControl "180+2"]
[Date "2023.04.18"]
[WhiteClock "0:00:55"]
[BlackClock "0:00:06"]

1. d4 {[%clk 0:03:00]}  d5 {[%clk 0:02:56]} 2. c4 {[%clk 0:03:01]}  e5 {[%clk 0:02:55]} 3. dxe5 {[%clk 0:03:00]}  d4 {[%clk 0:02:56]} 4. Nf3 {[%clk 0:02:58]}  Nc6 {[%clk 0:02:56]} 5. Nbd2 {[%clk 0:02:58]}  g5 {[%clk 0:02:51]} 6. Nb3 {[%clk 0:02:52]}  Bb4+ {[%clk 0:02:49]} 7. Bd2 {[%clk 0:02:48]}  Be7 {[%clk 0:02:41]} 8. g3 {[%clk 0:02:34]}  g4 {[%clk 0:02:40]} 9. Ng1 {[%clk 0:02:23]}  Nxe5 {[%clk 0:02:39]} 10. Bf4 {[%clk 0:02:18]}  Bb4+ {[%clk 0:02:18]} 11. Nd2 {[%clk 0:02:15]}  Qe7 {[%clk 0:02:16]} 12. Bxe5 {[%clk 0:02:10]}  Bxd2+ {[%clk 0:02:10]} 13. Qxd2 {[%clk 0:02:11]}  Qxe5 {[%clk 0:02:10]} 14. Rd1 {[%clk 0:02:09]}  c5 {[%clk 0:02:08]} 15. Bg2 {[%clk 0:02:07]}  Nf6 {[%clk 0:01:53]} 16. Qf4 {[%clk 0:01:57]}  Qxf4 {[%clk 0:01:50]} 17. gxf4 {[%clk 0:01:58]}  O-O {[%clk 0:01:51]} 18. e3 {[%clk 0:01:55]}  Re8 {[%clk 0:01:51]} 19. Kd2 {[%clk 0:01:51]}  Bf5 {[%clk 0:01:09]} 20. exd4 {[%clk 0:01:41]}  cxd4 {[%clk 0:01:08]} 21. Ne2 {[%clk 0:01:41]}  Be4 {[%clk 0:00:40]} 22. Rhg1 {[%clk 0:01:27]}  Rad8 {[%clk 0:00:33]} 23. f3 {[%clk 0:01:22]}  gxf3 {[%clk 0:00:17]} 24. Bxf3+ {[%clk 0:01:21]}  Kh8 {[%clk 0:00:18]} 25. Bg2 {[%clk 0:01:15]}  Bf5 {[%clk 0:00:02]} 26. Ng3 {[%clk 0:01:10]}  Bg4 {[%clk 0:00:02]} 27. Rde1 {[%clk 0:01:08]}  d3 {[%clk 0:00:01]} 28. Rxe8+ {[%clk 0:01:07]}  Nxe8 {[%clk 0:00:02]} 29. h3 {[%clk 0:01:05]}  Be6 {[%clk 0:00:01]} 30. b3 {[%clk 0:01:04]}  a5 {[%clk 0:00:01]} 31. Be4 {[%clk 0:01:02]}  a4 {[%clk 0:00:01]} 32. Bxd3 {[%clk 0:00:58]}  axb3 {[%clk 0:00:01]} 33. axb3 {[%clk 0:00:59]}  b5 {[%clk 0:00:01]} 34. Kc3 {[%clk 0:00:59]}  bxc4 {[%clk 0:00:02]} 35. Bxc4 {[%clk 0:00:59]}  Nd6 {[%clk 0:00:03]} 36. Bxe6 {[%clk 0:00:57]}  fxe6 {[%clk 0:00:03]} 37. b4 {[%clk 0:00:55]}  Rg8 {[%clk 0:00:04]} 38. Ne2 {[%clk 0:00:54]}  Ne4+ {[%clk 0:00:04]} 39. Kd4 {[%clk 0:00:55]}  Rxg1 {[%clk 0:00:03]} 40. Nxg1 {[%clk 0:00:55]}  Nf2 {[%clk 0:00:03]} 41. h4 {[%clk 0:00:55]}  Ng4 {[%clk 0:00:03]} 42. Nf3 {[%clk 0:00:55]}  Kg7 {[%clk 0:00:03]} 43. b5 {[%clk 0:00:55]}  Nf6 {[%clk 0:00:03]} 44. b6 {[%clk 0:00:54]}  Kf7 {[%clk 0:00:04]} 45. b7 {[%clk 0:00:54]}  Nd7 {[%clk 0:00:05]} 46. Ne5+ {[%clk 0:00:54]}  Ke7 {[%clk 0:00:05]} 47. Nxd7 {[%clk 0:00:54]}  Kxd7 {[%clk 0:00:06]} 48. b8=Q {[%clk 0:00:55]} 1-0


[Site "https://www.chess.com"]

[Event "Titled Tuesday Blitz April 18 Early 2023"]
[White "Szyszylo, Rafal"]
[Black "Mihajlovskij"]
[WhiteFideId "1109626"]
[WhiteElo "1951"]
[BlackElo "2099"]
[Result "1-0"]
[Round "10"]
[TimeControl "180+2"]
[Date "2023.04.18"]
[WhiteClock "0:02:19"]
[BlackClock "0:02:02"]

1. e4 {[%clk 0:02:56]}  d5 {[%clk 0:02:58]} 2. exd5 {[%clk 0:02:55]}  Qxd5 {[%clk 0:02:57]} 3. Nf3 {[%clk 0:02:54]}  Bg4 {[%clk 0:02:53]} 4. Be2 {[%clk 0:02:55]}  Nf6 {[%clk 0:02:43]} 5. d4 {[%clk 0:02:53]}  Nc6 {[%clk 0:02:41]} 6. c4 {[%clk 0:02:53]}  Qh5 {[%clk 0:02:37]} 7. Be3 {[%clk 0:02:51]}  e6 {[%clk 0:02:37]} 8. O-O {[%clk 0:02:37]}  Bd6 {[%clk 0:02:30]} 9. h3 {[%clk 0:02:37]}  Bxh3 {[%clk 0:02:25]} 10. Ne5 {[%clk 0:02:29]}  Bg4 {[%clk 0:02:18]} 11. Bxg4 {[%clk 0:02:29]}  Nxg4 {[%clk 0:02:02]} 12. Qxg4 {[%clk 0:02:19]} 1-0


[Site "https://www.chess.com"]

[Event "Titled Tuesday Blitz April 18 Early 2023"]
[White "Vargas, Mauricio"]
[Black "Kuchava, Ana"]
[WhiteFideId "4404572"]
[BlackFideId "13605348"]
[WhiteElo "1998"]
[BlackElo "2001"]
[Result "0-1"]
[Round "10"]
[TimeControl "180+2"]
[Date "2023.04.18"]
[WhiteClock "0:00:01"]
[BlackClock "0:00:12"]

1. e4 {[%clk 0:02:59]}  c5 {[%clk 0:02:56]} 2. Nc3 {[%clk 0:02:59]}  Nc6 {[%clk 0:02:55]} 3. f4 {[%clk 0:03:00]}  e6 {[%clk 0:02:50]} 4. Nf3 {[%clk 0:03:01]}  d5 {[%clk 0:02:48]} 5. d3 {[%clk 0:02:59]}  Nf6 {[%clk 0:02:41]} 6. e5 {[%clk 0:02:58]}  Ng8 {[%clk 0:02:41]} 7. g3 {[%clk 0:02:57]}  Nge7 {[%clk 0:02:29]} 8. Bg2 {[%clk 0:02:54]}  Nf5 {[%clk 0:02:21]} 9. O-O {[%clk 0:02:51]}  h5 {[%clk 0:02:17]} 10. Ne2 {[%clk 0:02:42]}  Be7 {[%clk 0:02:16]} 11. c3 {[%clk 0:02:42]}  a6 {[%clk 0:02:14]} 12. Qe1 {[%clk 0:02:25]}  b5 {[%clk 0:02:10]} 13. Bd2 {[%clk 0:02:21]}  Bb7 {[%clk 0:02:05]} 14. a4 {[%clk 0:01:54]}  Rb8 {[%clk 0:01:58]} 15. axb5 {[%clk 0:01:52]}  axb5 {[%clk 0:01:58]} 16. Kh1 {[%clk 0:01:43]}  Qb6 {[%clk 0:01:46]} 17. h3 {[%clk 0:01:38]}  c4 {[%clk 0:01:30]} 18. d4 {[%clk 0:01:35]}  b4 {[%clk 0:01:28]} 19. Qf2 {[%clk 0:01:26]}  Na5 {[%clk 0:00:49]} 20. cxb4 {[%clk 0:00:59]}  Bxb4 {[%clk 0:00:50]} 21. Bc3 {[%clk 0:00:55]}  Nb3 {[%clk 0:00:47]} 22. Ra4 {[%clk 0:00:36]}  Be7 {[%clk 0:00:44]} 23. Nc1 {[%clk 0:00:28]}  Bc6 {[%clk 0:00:37]} 24. Ra2 {[%clk 0:00:25]}  O-O {[%clk 0:00:25]} 25. Nxb3 {[%clk 0:00:23]}  cxb3 {[%clk 0:00:24]} 26. Raa1 {[%clk 0:00:24]}  Ra8 {[%clk 0:00:23]} 27. Nd2 {[%clk 0:00:23]}  Bb5 {[%clk 0:00:21]} 28. Rfc1 {[%clk 0:00:21]}  Bd3 {[%clk 0:00:19]} 29. Kg1 {[%clk 0:00:14]}  Bc2 {[%clk 0:00:19]} 30. Nf3 {[%clk 0:00:10]}  Bb4 {[%clk 0:00:16]} 31. Qd2 {[%clk 0:00:07]}  Bxc3 {[%clk 0:00:14]} 32. Qxc3 {[%clk 0:00:05]}  Rfc8 {[%clk 0:00:14]} 33. Qd2 {[%clk 0:00:05]}  Nxg3 {[%clk 0:00:14]} 34. Kf2 {[%clk 0:00:04]}  Ne4+ {[%clk 0:00:13]} 35. Ke3 {[%clk 0:00:03]}  Nxd2 {[%clk 0:00:14]} 36. Kxd2 {[%clk 0:00:03]}  Qb4+ {[%clk 0:00:14]} 37. Ke3 {[%clk 0:00:03]}  Rxa1 {[%clk 0:00:13]} 38. Rxa1 {[%clk 0:00:03]}  Qb7 {[%clk 0:00:12]} 39. Ng5 {[%clk 0:00:02]}  Ra8 {[%clk 0:00:12]} 40. Rc1 {[%clk 0:00:01]}  Ra2 {[%clk 0:00:12]} 0-1


[Site "https://www.chess.com"]

[Event "Titled Tuesday Blitz April 18 Early 2023"]
[White "Santos Flores, Alberto"]
[Black "Torres Dominguez, David"]
[WhiteFideId "3601234"]
[BlackFideId "2220857"]
[WhiteElo "2235"]
[BlackElo "1999"]
[Result "1/2-1/2"]
[Round "10"]
[TimeControl "180+2"]
[Date "2023.04.18"]
[WhiteClock "0:00:46"]
[BlackClock "0:00:05"]

1. e4 {[%clk 0:03:00]}  Nc6 {[%clk 0:02:52]} 2. Nf3 {[%clk 0:03:00]}  e5 {[%clk 0:02:52]} 3. Bc4 {[%clk 0:03:00]}  Bc5 {[%clk 0:02:51]} 4. c3 {[%clk 0:03:00]}  Nf6 {[%clk 0:02:50]} 5. d3 {[%clk 0:03:00]}  d6 {[%clk 0:02:49]} 6. Bb3 {[%clk 0:02:59]}  a6 {[%clk 0:02:48]} 7. O-O {[%clk 0:02:58]}  Ba7 {[%clk 0:02:45]} 8. Nbd2 {[%clk 0:02:57]}  h6 {[%clk 0:02:37]} 9. Re1 {[%clk 0:02:56]}  g5 {[%clk 0:02:35]} 10. Nf1 {[%clk 0:02:56]}  g4 {[%clk 0:02:32]} 11. N3d2 {[%clk 0:02:41]}  h5 {[%clk 0:02:28]} 12. Nc4 {[%clk 0:02:41]}  h4 {[%clk 0:02:25]} 13. Be3 {[%clk 0:02:42]}  Nh5 {[%clk 0:02:09]} 14. Bxa7 {[%clk 0:02:40]}  Rxa7 {[%clk 0:02:05]} 15. Nce3 {[%clk 0:02:40]}  Qg5 {[%clk 0:01:55]} 16. g3 {[%clk 0:02:36]}  Ra8 {[%clk 0:01:45]} 17. Nd5 {[%clk 0:02:33]}  Kd8 {[%clk 0:01:42]} 18. Qd2 {[%clk 0:02:30]}  Qg6 {[%clk 0:01:36]} 19. Nfe3 {[%clk 0:02:29]}  Be6 {[%clk 0:01:30]} 20. Rad1 {[%clk 0:02:16]}  hxg3 {[%clk 0:01:28]} 21. fxg3 {[%clk 0:02:01]}  Ne7 {[%clk 0:01:25]} 22. Nxe7 {[%clk 0:02:00]}  Kxe7 {[%clk 0:01:25]} 23. Nd5+ {[%clk 0:02:01]}  Bxd5 {[%clk 0:01:21]} 24. Bxd5 {[%clk 0:02:01]}  c6 {[%clk 0:01:21]} 25. Bb3 {[%clk 0:02:00]}  f6 {[%clk 0:01:21]} 26. Rf1 {[%clk 0:02:00]}  Rh6 {[%clk 0:01:19]} 27. Qg2 {[%clk 0:01:54]}  Rah8 {[%clk 0:01:18]} 28. Rd2 {[%clk 0:01:54]}  Qg5 {[%clk 0:01:12]} 29. Rdf2 {[%clk 0:01:52]}  Ng7 {[%clk 0:01:11]} 30. Bd1 {[%clk 0:01:40]}  Qe3 {[%clk 0:01:07]} 31. Bxg4 {[%clk 0:01:35]}  Rxh2 {[%clk 0:01:06]} 32. Qxh2 {[%clk 0:01:34]}  Rxh2 {[%clk 0:01:05]} 33. Kxh2 {[%clk 0:01:35]}  Ne8 {[%clk 0:00:57]} 34. Rf3 {[%clk 0:01:33]}  Qh6+ {[%clk 0:00:54]} 35. Kg2 {[%clk 0:01:33]}  Qg5 {[%clk 0:00:52]} 36. Bh3 {[%clk 0:01:31]}  Qd2+ {[%clk 0:00:52]} 37. R1f2 {[%clk 0:01:31]}  Qc1 {[%clk 0:00:51]} 38. Bg4 {[%clk 0:01:25]}  Qg5 {[%clk 0:00:50]} 39. Bc8 {[%clk 0:01:22]}  b6 {[%clk 0:00:46]} 40. Bxa6 {[%clk 0:01:22]}  Kd7 {[%clk 0:00:44]} 41. Bc4 {[%clk 0:01:20]}  Ke7 {[%clk 0:00:41]} 42. a4 {[%clk 0:01:19]}  Qc1 {[%clk 0:00:39]} 43. Bg8 {[%clk 0:01:12]}  Qa1 {[%clk 0:00:37]} 44. Bh7 {[%clk 0:01:12]}  Kf7 {[%clk 0:00:32]} 45. Bf5 {[%clk 0:01:10]}  Ke7 {[%clk 0:00:31]} 46. Bg6 {[%clk 0:01:10]}  Qxa4 {[%clk 0:00:29]} 47. Bxe8 {[%clk 0:01:09]}  Kxe8 {[%clk 0:00:29]} 48. Rxf6 {[%clk 0:01:09]}  c5 {[%clk 0:00:19]} 49. Rxd6 {[%clk 0:01:08]}  Qb3 {[%clk 0:00:16]} 50. Rd5 {[%clk 0:01:06]}  c4 {[%clk 0:00:15]} 51. Rxe5+ {[%clk 0:01:06]}  Kd7 {[%clk 0:00:16]} 52. d4 {[%clk 0:00:59]}  Qd1 {[%clk 0:00:14]} 53. Ref5 {[%clk 0:00:58]}  Qc1 {[%clk 0:00:14]} 54. e5 {[%clk 0:00:57]}  Qe1 {[%clk 0:00:14]} 55. d5 {[%clk 0:00:57]}  Qe4+ {[%clk 0:00:14]} 56. Kh2 {[%clk 0:00:55]}  Qxd5 {[%clk 0:00:13]} 57. Rf7+ {[%clk 0:00:54]}  Kc6 {[%clk 0:00:10]} 58. R7f6+ {[%clk 0:00:52]}  Kb5 {[%clk 0:00:10]} 59. e6 {[%clk 0:00:52]}  Qh5+ {[%clk 0:00:09]} 60. Kg2 {[%clk 0:00:52]}  Qd5+ {[%clk 0:00:09]} 61. R2f3 {[%clk 0:00:52]}  Qd2+ {[%clk 0:00:09]} 62. Kh3 {[%clk 0:00:52]}  Ka4 {[%clk 0:00:08]} 63. Rf7 {[%clk 0:00:47]}  b5 {[%clk 0:00:06]} 64. e7 {[%clk 0:00:46]}  Qh6+ {[%clk 0:00:07]} 65. Kg2 {[%clk 0:00:46]}  Qd2+ {[%clk 0:00:06]} 66. Rf2 {[%clk 0:00:46]}  Qd5+ {[%clk 0:00:07]} 67. R2f3 {[%clk 0:00:45]}  Qd2+ {[%clk 0:00:06]} 68. Kh3 {[%clk 0:00:46]}  Qh6+ {[%clk 0:00:06]} 69. Kg4 {[%clk 0:00:46]}  Qg6+ {[%clk 0:00:05]} 70. Kh3 {[%clk 0:00:46]}  Qh6+ {[%clk 0:00:05]} 1/2-1/2


[Site "https://www.chess.com"]

[Event "Titled Tuesday Blitz April 18 Early 2023"]
[White "Barria Santos, Jose Guilherme"]
[Black "Kotepalli, Sai Nirupama"]
[WhiteFideId "1939300"]
[BlackFideId "5039444"]
[WhiteElo "2266"]
[BlackElo "2335"]
[Result "0-1"]
[Round "10"]
[TimeControl "180+2"]
[Date "2023.04.18"]
[WhiteClock "0:01:39"]
[BlackClock "0:01:27"]

1. e4 {[%clk 0:03:00]}  c5 {[%clk 0:03:00]} 2. Nf3 {[%clk 0:03:00]}  e6 {[%clk 0:03:00]} 3. d4 {[%clk 0:03:01]}  cxd4 {[%clk 0:03:01]} 4. Nxd4 {[%clk 0:03:01]}  Nf6 {[%clk 0:03:01]} 5. Nc3 {[%clk 0:03:01]}  Nc6 {[%clk 0:03:01]} 6. Ndb5 {[%clk 0:03:00]}  Bb4 {[%clk 0:03:01]} 7. a3 {[%clk 0:02:57]}  Bxc3+ {[%clk 0:03:00]} 8. Nxc3 {[%clk 0:02:58]}  d5 {[%clk 0:03:01]} 9. exd5 {[%clk 0:02:55]}  exd5 {[%clk 0:03:02]} 10. Bd3 {[%clk 0:02:55]}  d4 {[%clk 0:03:01]} 11. Ne2 {[%clk 0:02:54]}  Qd5 {[%clk 0:02:56]} 12. O-O {[%clk 0:02:54]}  O-O {[%clk 0:02:55]} 13. Nf4 {[%clk 0:02:53]}  Qd6 {[%clk 0:02:54]} 14. c3 {[%clk 0:02:48]}  Bg4 {[%clk 0:02:46]} 15. f3 {[%clk 0:02:39]}  Be6 {[%clk 0:02:43]} 16. cxd4 {[%clk 0:02:38]}  Qxd4+ {[%clk 0:02:38]} 17. Kh1 {[%clk 0:02:35]}  Rad8 {[%clk 0:02:38]} 18. Bc2 {[%clk 0:02:28]}  Qc5 {[%clk 0:02:31]} 19. Qe2 {[%clk 0:02:00]}  Nd4 {[%clk 0:02:18]} 20. Be3 {[%clk 0:02:00]}  Nxe2 {[%clk 0:02:13]} 21. Bxc5 {[%clk 0:02:00]}  Nxf4 {[%clk 0:02:12]} 22. Bxf8 {[%clk 0:02:00]}  Kxf8 {[%clk 0:02:12]} 23. Rad1 {[%clk 0:01:53]}  Rc8 {[%clk 0:02:08]} 24. Ba4 {[%clk 0:01:48]}  a6 {[%clk 0:02:04]} 25. Rc1 {[%clk 0:01:45]}  Rxc1 {[%clk 0:01:35]} 26. Rxc1 {[%clk 0:01:45]}  N6d5 {[%clk 0:01:33]} 27. Bb3 {[%clk 0:01:42]}  Ke7 {[%clk 0:01:28]} 28. Kg1 {[%clk 0:01:39]}  Ne2+ {[%clk 0:01:27]} 0-1


[Site "https://www.chess.com"]

[Event "Titled Tuesday Blitz April 18 Early 2023"]
[White "Clawitter, Craig"]
[Black "Tuleyeva-Aketayeva, Dana"]
[WhiteFideId "2023105"]
[BlackFideId "13701932"]
[WhiteElo "2227"]
[BlackElo "2030"]
[Result "1-0"]
[Round "10"]
[TimeControl "180+2"]
[Date "2023.04.18"]
[WhiteClock "0:01:04"]
[BlackClock "0:01:06"]

1. e4 {[%clk 0:03:00]}  c5 {[%clk 0:02:59]} 2. Nf3 {[%clk 0:03:00]}  Nc6 {[%clk 0:02:59]} 3. d4 {[%clk 0:03:01]}  cxd4 {[%clk 0:03:00]} 4. Nxd4 {[%clk 0:03:02]}  g6 {[%clk 0:03:00]} 5. Nc3 {[%clk 0:03:02]}  Bg7 {[%clk 0:03:01]} 6. Be3 {[%clk 0:03:03]}  Nf6 {[%clk 0:03:01]} 7. Bc4 {[%clk 0:03:00]}  O-O {[%clk 0:03:01]} 8. Bb3 {[%clk 0:02:59]}  d6 {[%clk 0:03:00]} 9. f3 {[%clk 0:02:58]}  Bd7 {[%clk 0:03:00]} 10. Qd2 {[%clk 0:02:59]}  Na5 {[%clk 0:02:54]} 11. Bh6 {[%clk 0:02:48]}  Nxb3 {[%clk 0:02:50]} 12. axb3 {[%clk 0:02:46]}  a6 {[%clk 0:02:42]} 13. h4 {[%clk 0:02:44]}  e5 {[%clk 0:02:35]} 14. Nde2 {[%clk 0:02:34]}  Be6 {[%clk 0:02:35]} 15. O-O-O {[%clk 0:02:24]}  Ne8 {[%clk 0:02:15]} 16. Bxg7 {[%clk 0:02:07]}  Kxg7 {[%clk 0:02:11]} 17. h5 {[%clk 0:02:07]}  Qf6 {[%clk 0:02:06]} 18. hxg6 {[%clk 0:01:39]}  Qxg6 {[%clk 0:02:05]} 19. g4 {[%clk 0:01:37]}  Rd8 {[%clk 0:02:01]} 20. Ng3 {[%clk 0:01:37]}  Nf6 {[%clk 0:01:37]} 21. g5 {[%clk 0:01:23]}  Ne8 {[%clk 0:01:17]} 22. Rh6 {[%clk 0:01:22]}  d5 {[%clk 0:01:14]} 23. Rxg6+ {[%clk 0:01:05]}  fxg6 {[%clk 0:01:10]} 24. exd5 {[%clk 0:01:05]}  Rxf3 {[%clk 0:01:08]} 25. Qe2 {[%clk 0:01:04]}  Rxg3 {[%clk 0:01:06]} 26. Qxe5+ {[%clk 0:01:04]} 1-0


[Site "https://www.chess.com"]

[Event "Titled Tuesday Blitz April 18 Early 2023"]
[White "Osiecki, Stanislaw"]
[Black "Ciuffoletti, Paolo"]
[WhiteFideId "1102990"]
[BlackFideId "807630"]
[WhiteElo "2088"]
[BlackElo "2143"]
[Result "1-0"]
[Round "10"]
[TimeControl "180+2"]
[Date "2023.04.18"]
[WhiteClock "0:00:20"]
[BlackClock "0:00:04"]

1. e4 {[%clk 0:02:49]}  c5 {[%clk 0:02:58]} 2. c3 {[%clk 0:02:49]}  d5 {[%clk 0:02:57]} 3. e5 {[%clk 0:02:48]}  Nc6 {[%clk 0:02:51]} 4. d4 {[%clk 0:02:49]}  Bf5 {[%clk 0:02:51]} 5. Bd3 {[%clk 0:02:48]}  Bg6 {[%clk 0:02:42]} 6. e6 {[%clk 0:02:46]}  Qd6 {[%clk 0:02:27]} 7. exf7+ {[%clk 0:02:41]}  Bxf7 {[%clk 0:02:27]} 8. Nf3 {[%clk 0:02:40]}  c4 {[%clk 0:02:21]} 9. Bc2 {[%clk 0:02:40]}  Nf6 {[%clk 0:02:21]} 10. O-O {[%clk 0:02:37]}  g6 {[%clk 0:02:18]} 11. Re1 {[%clk 0:02:37]}  Bg7 {[%clk 0:02:16]} 12. Ng5 {[%clk 0:02:35]}  O-O {[%clk 0:02:10]} 13. Nxf7 {[%clk 0:02:35]}  Rxf7 {[%clk 0:02:10]} 14. h3 {[%clk 0:02:33]}  Raf8 {[%clk 0:02:04]} 15. Be3 {[%clk 0:02:32]}  Nh5 {[%clk 0:02:01]} 16. Nd2 {[%clk 0:02:27]}  e5 {[%clk 0:01:44]} 17. dxe5 {[%clk 0:02:27]}  Bxe5 {[%clk 0:01:23]} 18. Nf1 {[%clk 0:02:26]}  d4 {[%clk 0:01:17]} 19. cxd4 {[%clk 0:02:19]}  Nxd4 {[%clk 0:01:14]} 20. Be4 {[%clk 0:02:09]}  Rd7 {[%clk 0:01:05]} 21. Qc1 {[%clk 0:01:45]}  Bf4 {[%clk 0:00:59]} 22. Qxc4+ {[%clk 0:01:41]}  Kg7 {[%clk 0:00:53]} 23. Bxd4+ {[%clk 0:01:41]}  Qxd4 {[%clk 0:00:52]} 24. Qxd4+ {[%clk 0:01:41]}  Rxd4 {[%clk 0:00:52]} 25. Bxb7 {[%clk 0:01:39]}  Rb8 {[%clk 0:00:50]} 26. Bf3 {[%clk 0:01:39]}  Rxb2 {[%clk 0:00:49]} 27. Bxh5 {[%clk 0:01:36]}  gxh5 {[%clk 0:00:49]} 28. Re7+ {[%clk 0:01:31]}  Kg6 {[%clk 0:00:48]} 29. Rxa7 {[%clk 0:01:30]}  Bd6 {[%clk 0:00:45]} 30. Ra6 {[%clk 0:01:23]}  Kf7 {[%clk 0:00:40]} 31. Rc1 {[%clk 0:01:11]}  Ke6 {[%clk 0:00:28]} 32. Ne3 {[%clk 0:01:06]}  Rdd2 {[%clk 0:00:20]} 33. Nc4 {[%clk 0:01:04]}  Rxa2 {[%clk 0:00:10]} 34. Rxa2 {[%clk 0:00:56]}  Rxa2 {[%clk 0:00:09]} 35. Nxd6 {[%clk 0:00:53]}  Kxd6 {[%clk 0:00:09]} 36. Re1 {[%clk 0:00:43]}  Rd2 {[%clk 0:00:08]} 37. f4 {[%clk 0:00:40]}  h4 {[%clk 0:00:08]} 38. Re5 {[%clk 0:00:38]}  Rd4 {[%clk 0:00:08]} 39. Rh5 {[%clk 0:00:37]}  Rxf4 {[%clk 0:00:08]} 40. Rxh7 {[%clk 0:00:37]}  Ke5 {[%clk 0:00:08]} 41. Rh5+ {[%clk 0:00:37]}  Kf6 {[%clk 0:00:08]} 42. Rh8 {[%clk 0:00:35]}  Kg7 {[%clk 0:00:08]} 43. Rb8 {[%clk 0:00:32]}  Rd4 {[%clk 0:00:08]} 44. Rb5 {[%clk 0:00:31]}  Rf4 {[%clk 0:00:07]} 45. Rg5+ {[%clk 0:00:31]}  Kh6 {[%clk 0:00:07]} 46. Rg8 {[%clk 0:00:27]}  Kh7 {[%clk 0:00:07]} 47. Rg4 {[%clk 0:00:24]}  Rxg4 {[%clk 0:00:05]} 48. hxg4 {[%clk 0:00:24]}  Kg6 {[%clk 0:00:06]} 49. Kf2 {[%clk 0:00:24]}  Kf6 {[%clk 0:00:06]} 50. Ke3 {[%clk 0:00:23]}  Kg6 {[%clk 0:00:06]} 51. Kf4 {[%clk 0:00:23]}  Kf6 {[%clk 0:00:06]} 52. g5+ {[%clk 0:00:23]}  Kg6 {[%clk 0:00:06]} 53. Kg4 {[%clk 0:00:23]}  Kg7 {[%clk 0:00:04]} 54. Kxh4 {[%clk 0:00:22]}  Kg6 {[%clk 0:00:04]} 55. Kg4 {[%clk 0:00:22]}  Kh7 {[%clk 0:00:04]} 56. Kf5 {[%clk 0:00:23]}  Kg7 {[%clk 0:00:04]} 57. g3 {[%clk 0:00:20]} 1-0


[Site "https://www.chess.com"]